bitfinex/quotes_BTCUSD_20251202
["timestamp","ask_amount","ask_price","bid_price","bid_amount"]
[1764658976054,0.71475936,87188.0,87187.0,0.00201255]
[1764658976362,0.71475936,87188.0,87187.0,0.01348439]
[1764658976563,0.71475936,87188.0,87187.0,0.01248439]
[1764658976767,0.71375936,87188.0,87187.0,0.01248439]
[1764658976977,0.71375936,87188.0,87187.0,0.01348439]
[1764658977173,0.71475936,87188.0,87187.0,0.01348439]
[1764658979200,0.77728235,87188.0,87187.0,0.01348439]
[1764658980336,0.77728235,87188.0,87187.0,0.00201255]
[1764658980337,2.77728235,87188.0,87187.0,0.00201255]
[1764658980535,0.01147367,87156.0,87149.0,0.01148408]
[1764658980765,0.01147381,87155.0,87154.0,0.01148408]
[1764658981047,0.01147381,87155.0,87150.0,0.4]
[1764658981048,0.01147367,87156.0,87155.0,0.00100569]
[1764658981477,0.33447288,87162.0,87155.0,0.00100569]
[1764658981754,0.01147315,87160.0,87149.0,9.239e-05]
[1764658981990,0.01147302,87161.0,87160.0,0.01148408]
[1764658982159,0.323,87162.0,87149.0,9.239e-05]
[1764658982336,0.323,87162.0,87161.0,0.01148408]
[1764658982537,0.35259275,87163.0,87162.0,0.01148408]
[1764658983105,0.34112,87163.0,87162.0,0.01148408]
[1764658983524,0.01812,87163.0,87162.0,0.01148408]
[1764658983990,0.01812,87163.0,87162.0,0.01248408]
[1764658985258,0.06528,87163.0,87162.0,0.01248408]
[1764658985486,0.45015,87163.0,87162.0,0.01248408]
[1764658986491,0.60577299,87163.0,87162.0,0.01248408]
[1764658987985,2.64142762,87163.0,87162.0,0.001]
[1764658988266,2.6539117,87163.0,87162.0,0.001]
[1764658988811,0.61500974,87151.0,87150.0,0.01148408]
[1764658989017,0.17063299,87150.0,87149.0,0.01157647]
[1764658989242,0.26373299,87150.0,87149.0,9.239e-05]
[1764658989939,0.26373299,87150.0,87149.0,0.01157647]
[1764658990151,0.26373299,87150.0,87149.0,0.01257647]
[1764658990744,0.10885299,87150.0,87149.0,0.01257647]
[1764658990948,0.06252299,87150.0,87149.0,0.01257647]
[1764658991146,0.08064299,87150.0,87149.0,0.01257647]
[1764658991508,0.08064299,87150.0,87149.0,0.01357647]
[1764658993298,0.22948675,87151.0,87150.0,0.01148408]
[1764658993566,0.323,87155.0,87154.0,0.01148408]
[1764658994188,0.01147381,87155.0,87154.0,0.01148408]
[1764658994589,0.24095003,87155.0,87154.0,0.01148408]
[1764658995548,0.24095003,87155.0,87154.0,0.01248408]
[1764659000428,0.56394658,87157.0,87156.0,0.01148408]
[1764659000788,0.56394658,87157.0,87156.0,0.01245833]
[1764659000989,0.323,87157.0,87156.0,0.01245833]
[1764659002094,0.324,87157.0,87156.0,0.01345833]
[1764659008227,0.38578,87157.0,87156.0,0.01345833]
[1764659008427,0.54140299,87157.0,87156.0,0.01345833]
[1764659008679,0.54140299,87157.0,87156.0,0.00197425]
[1764659009241,0.54140299,87157.0,87156.0,0.01345833]
[1764659009466,0.5885417,87157.0,87156.0,0.01345833]
[1764659010718,0.5885417,87157.0,87156.0,0.00197425]
[1764659014198,2.5885417,87157.0,87156.0,0.00197425]
[1764659018228,2.55288707,87157.0,87156.0,0.00197425]
[1764659018431,2.55188707,87157.0,87156.0,0.00197425]
[1764659018929,2.23088707,87157.0,87156.0,0.00097425]
[1764659019156,2.24900707,87157.0,87156.0,0.01245833]
[1764659019384,0.24900707,87157.0,87156.0,0.01245833]
[1764659020764,0.57200707,87157.0,87156.0,0.01245833]
[1764659021415,0.57200707,87157.0,87156.0,0.00097425]
[1764659021618,0.09412707,87157.0,87156.0,0.01245833]
[1764659025201,0.09251107,87157.0,87156.0,0.01245833]
[1764659026192,0.41551107,87157.0,87156.0,0.01245833]
[1764659026961,0.40402699,87157.0,87156.0,0.01245833]
[1764659032564,0.40402699,87157.0,87156.0,0.01245833]
[1764659035483,0.56288699,87157.0,87156.0,0.01245833]
[1764659035683,0.40402699,87157.0,87156.0,0.01245833]
[1764659042394,0.40703,87157.0,87156.0,0.01245833]
[1764659044051,0.34312,87157.0,87156.0,0.01245833]
[1764659045415,0.50198,87157.0,87156.0,0.01245833]
[1764659045951,0.51443833,87157.0,87156.0,0.01245833]
[1764659048818,0.35557833,87157.0,87156.0,0.01245833]
[1764659050976,0.48137132,87157.0,87156.0,0.00097425]
[1764659051095,2.57512132,87157.0,87156.0,0.01245833]
[1764659051506,2.48137132,87157.0,87156.0,0.01245833]
[1764659053189,2.41810132,87157.0,87156.0,0.01245833]
[1764659053419,2.41810132,87157.0,87149.0,0.01157647]
[1764659053420,0.61501237,87150.0,87149.0,0.01157647]
[1764659053618,0.72791237,87150.0,87149.0,0.01157647]
[1764659053820,0.82166237,87150.0,87149.0,0.01157647]
[1764659054008,0.62658884,87150.0,87149.0,0.01157647]
[1764659054179,0.64470884,87150.0,87149.0,0.01157647]
[1764659056019,0.64670884,87150.0,87149.0,0.01157647]
[1764659058830,0.80372884,87150.0,87149.0,0.01157647]
[1764659059274,0.70997884,87150.0,87149.0,0.01157647]
[1764659060265,0.64670884,87150.0,87149.0,0.01157647]
[1764659060786,0.64670884,87150.0,87149.0,9.239e-05]
[1764659060988,0.64670884,87150.0,87149.0,0.01157647]
[1764659067975,0.70997884,87150.0,87149.0,0.01157647]
[1764659071927,0.64670884,87150.0,87149.0,0.01157647]
[1764659074916,0.71112884,87150.0,87149.0,0.01157647]
[1764659075106,2.71112884,87150.0,87149.0,0.01157647]
[1764659076067,0.80235884,87150.0,87149.0,0.01157647]
[1764659076265,2.80235884,87150.0,87149.0,0.01157647]
[1764659076779,2.80235884,87150.0,87149.0,9.239e-05]
[1764659078084,2.80235884,87150.0,87149.0,0.01157647]
[1764659079063,0.0730368,87116.0,87115.0,0.01148407]
[1764659079284,0.0730368,87116.0,87115.0,0.01186915]
[1764659080334,0.0730368,87116.0,87115.0,0.01386915]
[1764659080539,0.0740368,87116.0,87115.0,0.01886915]
[1764659082531,0.0740368,87116.0,87115.0,0.41886915]
[1764659084437,0.0740368,87116.0,87115.0,0.41990698]
[1764659085735,0.001,87116.0,87115.0,0.41990698]
[1764659089879,0.22954619,87129.0,87115.0,0.41990698]
[1764659089880,0.01147763,87126.0,87118.0,0.323]
[1764659090228,0.56423542,87130.0,87128.0,0.01148407]
[1764659090383,0.22952566,87137.0,87129.0,0.10579]
[1764659090561,0.82335418,87138.0,87137.0,0.09989407]
[1764659090562,2.59383146,87138.0,87137.0,0.09989407]
[1764659090970,2.0640873,87138.0,87137.0,0.19183407]
[1764659091771,2.3870873,87138.0,87137.0,0.19183407]
[1764659092456,2.3870873,87138.0,87137.0,0.19283407]
[1764659092661,2.3870873,87138.0,87137.0,0.19383407]
[1764659092895,2.35749126,87138.0,87137.0,0.19383407]
[1764659094512,2.35749126,87138.0,87137.0,0.10189407]
[1764659095114,2.35749126,87138.0,87137.0,0.19383407]
[1764659095516,2.35749126,87138.0,87137.0,0.04115407]
[1764659095944,2.35749126,87138.0,87137.0,0.04149992]
[1764659096320,2.35749126,87138.0,87137.0,0.13343992]
[1764659097336,2.35749126,87138.0,87137.0,0.04149992]
[1764659098267,2.35749126,87138.0,87137.0,0.01382992]
[1764659099919,2.35749126,87138.0,87137.0,0.01282992]
[1764659100393,2.35849126,87138.0,87137.0,0.01282992]
[1764659100534,2.35849126,87138.0,87137.0,0.01182992]
[1764659100735,2.35849126,87138.0,87137.0,0.01282992]
[1764659101505,0.42178126,87138.0,87137.0,0.00134585]
[1764659101706,2.42178126,87138.0,87137.0,0.00134585]
[1764659101905,2.48430425,87138.0,87137.0,0.01282992]
[1764659102145,2.48430425,87138.0,87137.0,0.00134585]
[1764659102717,2.39430425,87138.0,87137.0,0.00134585]
[1764659102945,2.39330425,87138.0,87137.0,0.00134585]
[1764659103149,2.39790398,87138.0,87137.0,0.00134585]
[1764659103432,2.43241001,87138.0,87137.0,0.00134585]
[1764659104066,2.43241001,87138.0,87137.0,0.00034585]
[1764659104932,2.24688766,87138.0,87137.0,0.00034585]
[1764659110846,2.48803354,87138.0,87137.0,0.00034585]
[1764659111251,2.45541272,87138.0,87137.0,0.00034585]
[1764659111753,2.45541272,87138.0,87137.0,0.01182992]
[1764659111754,2.06988973,87138.0,87137.0,0.01182992]
[1764659111960,2.08800973,87138.0,87137.0,0.01182992]
[1764659112462,2.41100973,87138.0,87137.0,0.01182992]
[1764659119533,2.41100973,87138.0,87137.0,0.00034585]
[1764659119757,2.47353272,87138.0,87137.0,0.00034585]
[1764659120092,2.50615354,87138.0,87137.0,0.00034585]
[1764659120795,2.47353272,87138.0,87137.0,0.00034585]
[1764659121003,2.47353272,87138.0,87137.0,0.01182992]
[1764659121196,2.47353272,87138.0,87137.0,0.00034585]
[1764659124701,0.47353272,87138.0,87137.0,0.00034585]
[1764659125035,2.47353272,87138.0,87137.0,0.00034585]
[1764659127964,2.50615354,87138.0,87137.0,0.00034585]
[1764659133453,2.38552299,87116.0,87115.0,0.01186915]
[1764659133698,2.45314299,87116.0,87115.0,0.01186915]
[1764659134249,2.46501214,87116.0,87115.0,0.00038508]
[1764659135254,2.46601214,87116.0,87115.0,0.00038508]
[1764659135544,2.46501214,87116.0,87115.0,0.00038508]
[1764659135898,2.46701214,87116.0,87115.0,0.01186915]
[1764659136332,2.40448915,87116.0,87115.0,0.00038508]
[1764659136536,2.40448915,87116.0,87115.0,0.01186915]
[1764659139147,2.40448915,87116.0,87115.0,0.00107701]
[1764659139148,2.33686915,87116.0,87115.0,0.00107701]
[1764659139363,2.35498915,87116.0,87115.0,0.01256108]
[1764659139613,2.03198915,87116.0,87115.0,0.01256108]
[1764659139782,2.35498915,87116.0,87115.0,0.01256108]
[1764659140162,0.35498915,87116.0,87115.0,0.06197108]
[1764659140486,2.35298915,87116.0,87115.0,0.06197108]
[1764659140649,2.5835681,87116.0,87115.0,0.06197108]
[1764659140844,2.324,87116.0,87115.0,0.20720701]
[1764659141051,2.324,87116.0,87115.0,0.21869108]
[1764659141276,2.001,87116.0,87115.0,0.21869108]
[1764659143900,2.001,87116.0,87115.0,0.12249108]
[1764659144834,2.001,87116.0,87115.0,0.01256108]
[1764659145048,2.0505,87116.0,87115.0,0.01256108]
[1764659145215,2.001,87116.0,87115.0,0.01256108]
[1764659146784,2.324,87116.0,87115.0,0.01256108]
[1764659146983,2.3735,87116.0,87115.0,0.01256108]
[1764659147585,2.324,87116.0,87115.0,0.01256108]
[1764659149151,2.324,87116.0,87115.0,0.03256108]
[1764659149505,2.3735,87116.0,87115.0,0.03256108]
[1764659150307,0.22960908,87105.0,87103.0,0.00051108]
[1764659150501,0.22960908,87105.0,87104.0,0.01148408]
[1764659151037,0.22960908,87105.0,87103.0,4.852e-05]
[1764659151487,0.22960908,87105.0,87104.0,0.12177408]
[1764659151642,0.2410828,87107.0,87106.0,0.01148408]
[1764659152437,0.2410828,87107.0,87106.0,0.10768408]
[1764659152801,0.2410828,87107.0,87106.0,0.01148408]
[1764659154255,0.2410828,87107.0,87106.0,0.01248408]
[1764659154393,0.2410828,87107.0,87106.0,0.01348408]
[1764659158267,0.2894228,87107.0,87106.0,0.01348408]
[1764659158435,0.3541428,87107.0,87106.0,0.01348408]
[1764659159108,0.2894228,87107.0,87106.0,0.01348408]
[1764659159878,0.2900728,87107.0,87106.0,0.002]
[1764659160077,2.6771528,87107.0,87106.0,0.01348408]
[1764659160670,2.69063688,87107.0,87106.0,0.01148408]
[1764659160869,2.69063688,87107.0,87106.0,0.01248408]
[1764659161465,2.69063688,87107.0,87106.0,0.01348408]
[1764659162471,2.69063688,87107.0,87106.0,0.002]
[1764659162774,2.75315987,87107.0,87106.0,0.001]
[1764659162958,2.78578069,87107.0,87106.0,0.001]
[1764659163158,2.78578069,87107.0,87106.0,0.002]
[1764659163159,2.77127987,87107.0,87106.0,0.002]
[1764659163366,2.75315987,87107.0,87106.0,0.001]
[1764659163562,2.77127987,87107.0,87106.0,0.00128313]
[1764659163975,2.77127987,87107.0,87106.0,0.00028313]
[1764659164169,2.77427987,87107.0,87106.0,0.00128313]
[1764659166767,2.75615987,87107.0,87106.0,0.00128313]
[1764659166980,2.77431987,87107.0,87106.0,0.00128313]
[1764659167319,0.77431987,87107.0,87106.0,0.00128313]
[1764659167524,2.77431987,87107.0,87106.0,0.00128313]
[1764659169468,2.75615987,87107.0,87106.0,0.00128313]
[1764659169840,2.77431987,87107.0,87106.0,0.01276721]
[1764659170413,2.77431987,87107.0,87106.0,0.00128313]
[1764659173660,2.77427987,87107.0,87106.0,0.00128313]
[1764659176592,2.80690069,87107.0,87106.0,0.00128313]
[1764659181374,2.77427987,87107.0,87106.0,0.00128313]
[1764659181589,2.71175688,87107.0,87106.0,0.01276721]
[1764659181791,2.69363688,87107.0,87106.0,0.01276721]
[1764659181997,2.71175688,87107.0,87106.0,0.01276721]
[1764659182477,2.71175688,87107.0,87106.0,0.00128313]
[1764659182688,2.71175688,87107.0,87106.0,0.01276721]
[1764659183923,2.69363688,87107.0,87106.0,0.01276721]
[1764659184127,2.71175688,87107.0,87106.0,0.01276721]
[1764659186922,2.69363688,87107.0,87106.0,0.01276721]
[1764659187121,2.71175688,87107.0,87106.0,0.01276721]
[1764659187937,2.71175688,87107.0,87106.0,0.00128313]
[1764659188134,2.71175688,87107.0,87106.0,0.01276721]
[1764659188419,2.69363688,87107.0,87106.0,0.01276721]
[1764659188616,2.71175688,87107.0,87106.0,0.00128313]
[1764659189467,2.7443777,87107.0,87106.0,0.00128313]
[1764659193209,0.7443777,87107.0,87106.0,0.00128313]
[1764659193514,2.7443777,87107.0,87106.0,0.00128313]
[1764659194699,2.71175688,87107.0,87106.0,0.00128313]
[1764659196842,2.77427987,87107.0,87106.0,0.00128313]
[1764659197913,2.80713079,87107.0,87106.0,0.00128313]
[1764659198133,2.77427987,87107.0,87106.0,0.00128313]
[1764659201387,2.77427987,87107.0,87106.0,0.01276721]
[1764659202666,2.80713079,87107.0,87106.0,0.00128313]
[1764659213578,2.80713079,87107.0,87106.0,0.01276721]
[1764659213784,2.80713079,87107.0,87106.0,0.00128313]
[1764659220079,2.64437489,87107.0,87106.0,0.01276721]
[1764659220494,2.65585502,87107.0,87106.0,0.00128313]
[1764659221899,2.11092703,87107.0,87106.0,0.01276721]
[1764659222196,2.43392703,87107.0,87106.0,0.01276721]
[1764659222432,2.43392703,87107.0,87106.0,0.00128313]
[1764659222602,2.52434703,87107.0,87106.0,0.01276721]
[1764659223706,2.52134703,87107.0,87106.0,0.01176721]
[1764659223889,2.52134703,87107.0,87106.0,0.00028313]
[1764659224206,2.52334703,87107.0,87106.0,0.00028313]
[1764659224558,2.55619795,87107.0,87106.0,0.00028313]
[1764659225227,2.56079904,87107.0,87106.0,0.00028313]
[1764659226673,2.62332203,87107.0,87106.0,0.00028313]
[1764659228896,2.55261058,87104.0,87103.0,4.852e-05]
[1764659229124,2.5863615,87104.0,87103.0,4.852e-05]
[1764659229330,2.6758915,87104.0,87103.0,4.852e-05]
[1764659229529,2.73841449,87104.0,87103.0,4.852e-05]
[1764659229728,2.73841449,87104.0,87100.0,1e-08]
[1764659229729,2.66149147,87101.0,87100.0,1e-08]
[1764659229937,2.69434239,87101.0,87100.0,0.00011542]
[1764659230153,2.78442239,87101.0,87100.0,0.00011542]
[1764659230521,2.78442239,87101.0,87100.0,1e-08]
[1764659230720,2.7814999,87101.0,87100.0,1e-08]
[1764659230970,2.81835082,87101.0,87100.0,0.00100001]
[1764659231351,2.81835082,87101.0,87060.0,0.0004]
[1764659231352,0.01148197,87093.0,87060.0,0.0004]
[1764659231551,0.01148197,87093.0,87090.0,0.00051537]
[1764659231552,2.43330299,87091.0,87090.0,0.00051537]
[1764659231939,2.55790143,87091.0,87090.0,0.00051537]
[1764659233798,2.57602143,87091.0,87090.0,0.00151537]
[1764659233937,0.57602143,87091.0,87090.0,0.00051537]
[1764659234131,2.57602143,87091.0,87090.0,0.00051537]
[1764659234331,2.55990143,87091.0,87090.0,0.00151537]
[1764659234538,2.57802143,87091.0,87090.0,0.00151537]
[1764659236243,2.61087235,87091.0,87090.0,0.00151537]
[1764659238802,2.61087235,87091.0,87060.0,0.0004]
[1764659238803,0.61519421,87081.0,87060.0,0.0004]
[1764659239002,2.63335421,87081.0,87080.0,0.00051548]
[1764659239207,2.75653513,87081.0,87080.0,0.00051548]
[1764659239388,2.76113801,87081.0,87080.0,0.00051548]
[1764659240138,2.72928709,87081.0,87080.0,0.00051548]
[1764659240581,2.72928709,87081.0,87080.0,0.00133369]
[1764659246426,0.72928709,87081.0,87080.0,0.00133369]
[1764659246620,2.72928709,87081.0,87080.0,0.00133369]
[1764659246802,2.76213801,87081.0,87080.0,0.00133369]
[1764659250208,0.22972398,87061.0,87060.0,0.0004]
[1764659250405,2.63301398,87061.0,87060.0,0.00051555]
[1764659250796,2.58236806,87061.0,87060.0,0.00051555]
[1764659251008,2.58236806,87061.0,87060.0,0.01199963]
[1764659251242,2.56420806,87061.0,87060.0,0.00051555]
[1764659251500,2.58236806,87061.0,87060.0,0.01299963]
[1764659252222,2.58336806,87061.0,87060.0,0.01499963]
[1764659252479,2.58336806,87061.0,87060.0,0.12686963]
[1764659252687,2.58336806,87061.0,87060.0,0.12586963]
[1764659252688,2.56520806,87061.0,87060.0,0.12586963]
[1764659253132,2.56520806,87061.0,87060.0,0.12686963]
[1764659254511,0.56520806,87061.0,87060.0,0.12686963]
[1764659255741,0.56520806,87061.0,87060.0,0.12749926]
[1764659256868,0.24220806,87061.0,87060.0,0.12749926]
[1764659257067,0.23072398,87061.0,87060.0,0.22009926]
[1764659257338,0.23072398,87061.0,87060.0,0.12749926]
[1764659258608,0.23072398,87061.0,87060.0,0.11601518]
[1764659258806,0.001,87061.0,87060.0,0.22127926]
[1764659261549,0.001,87061.0,87060.0,0.21824226]
[1764659262479,0.001,87061.0,87060.0,0.4364848]
[1764659262623,0.001,87061.0,87060.0,0.44796888]
[1764659264918,0.24119078,87068.0,87067.0,0.01148408]
[1764659265526,0.24119078,87068.0,87067.0,0.05863331]
[1764659266223,0.24219078,87068.0,87067.0,0.06163331]
[1764659266521,0.24219078,87068.0,87067.0,0.12315331]
[1764659266704,0.24219078,87068.0,87067.0,0.21693331]
[1764659268164,0.10772097,87068.0,87067.0,0.21693331]
[1764659273865,0.43072097,87068.0,87067.0,0.01489331]
[1764659274024,2.52244097,87068.0,87067.0,0.01489331]
[1764659274638,2.5569614,87068.0,87067.0,0.01489331]
[1764659276783,2.5569614,87068.0,87067.0,0.00340923]
[1764659281988,0.5569614,87068.0,87067.0,0.00340923]
[1764659282164,2.5569614,87068.0,87067.0,0.00340923]
[1764659285139,2.5569614,87068.0,87067.0,0.01489331]
[1764659285294,2.5569614,87068.0,87067.0,0.00340923]
[1764659287335,2.5569614,87068.0,87067.0,0.01489331]
[1764659288791,2.5569614,87068.0,87067.0,0.00340923]
[1764659289001,2.5569614,87068.0,87067.0,0.01489331]
[1764659290676,2.5569614,87068.0,87067.0,0.00340923]
[1764659290881,2.5569614,87068.0,87067.0,0.00240923]
[1764659291479,2.5559614,87068.0,87067.0,0.00040923]
[1764659291846,2.5569614,87068.0,87067.0,0.00040923]
[1764659292056,2.61948439,87068.0,87067.0,0.00040923]
[1764659293573,2.6531356,87068.0,87067.0,0.00040923]
[1764659294519,0.6531356,87068.0,87067.0,0.00040923]
[1764659294752,2.6531356,87068.0,87067.0,0.00040923]
[1764659300524,2.63764439,87068.0,87067.0,0.01189331]
[1764659301510,2.63764439,87068.0,87067.0,0.00040923]
[1764659303519,2.63764439,87068.0,87067.0,0.01189331]
[1764659307128,2.63764439,87068.0,87067.0,0.00040923]
[1764659311392,2.6712956,87068.0,87067.0,0.00040923]
[1764659316076,2.63764439,87068.0,87067.0,0.00040923]
[1764659322421,2.6712956,87068.0,87067.0,0.00040923]
[1764659323202,2.6702956,87068.0,87067.0,0.00040923]
[1764659323586,2.6732956,87068.0,87067.0,0.00140923]
[1764659324196,0.6732956,87068.0,87067.0,0.00140923]
[1764659324405,2.6732956,87068.0,87067.0,0.00140923]
[1764659324625,2.6702956,87068.0,87067.0,0.00040923]
[1764659324985,2.6732956,87068.0,87067.0,0.00140923]
[1764659330031,2.70322403,87068.0,87067.0,0.00140923]
[1764659330236,2.55275037,87051.0,87050.0,0.0005]
[1764659330390,2.55275037,87051.0,87050.0,0.00061559]
[1764659330391,2.57117037,87051.0,87050.0,0.00061559]
[1764659330591,2.66862037,87051.0,87050.0,0.00061559]
[1764659330815,2.68301037,87051.0,87050.0,0.00061559]
[1764659331534,2.68301037,87051.0,87050.0,0.00161559]
[1764659331535,2.68401037,87051.0,87050.0,0.00161559]
[1764659332072,2.68401037,87051.0,87050.0,0.00261559]
[1764659332692,2.74653336,87051.0,87050.0,0.00261559]
[1764659333435,2.74653336,87051.0,87050.0,0.00161559]
[1764659334024,2.74553336,87051.0,87050.0,0.00061559]
[1764659334837,2.74653336,87051.0,87050.0,0.00061559]
[1764659335263,0.74653336,87051.0,87050.0,0.00061559]
[1764659335452,2.74653336,87051.0,87050.0,0.00061559]
[1764659335791,2.74653336,87051.0,87050.0,0.00115087]
[1764659340921,2.56840037,87051.0,87050.0,0.00115087]
[1764659341159,2.58656037,87051.0,87050.0,0.01263495]
[1764659342348,2.68401037,87051.0,87050.0,0.01263495]
[1764659343713,2.68401037,87051.0,87050.0,0.00115087]
[1764659344235,2.50723469,87051.0,87050.0,0.00115087]
[1764659347431,2.56975768,87051.0,87050.0,0.00115087]
[1764659348659,2.56875768,87051.0,87050.0,0.00115087]
[1764659348871,2.57075768,87051.0,87050.0,0.00115087]
[1764659351948,2.60440889,87051.0,87050.0,0.00115087]
[1764659352620,2.63433856,87051.0,87050.0,0.00115087]
[1764659353146,2.63233856,87051.0,87050.0,0.00115087]
[1764659353554,2.38552299,87041.0,87036.0,0.01148408]
[1764659353836,2.44572299,87041.0,87040.0,0.00078522]
[1764659354053,2.53789299,87041.0,87040.0,0.00078522]
[1764659354198,2.54937707,87041.0,87040.0,0.00078522]
[1764659354652,2.55137707,87041.0,87040.0,0.00078522]
[1764659358705,2.47069408,87041.0,87040.0,0.00078522]
[1764659358909,2.48885408,87041.0,87040.0,0.00078522]
[1764659363525,2.48885408,87041.0,87040.0,0.00110016]
[1764659363939,2.14769408,87041.0,87040.0,0.00110016]
[1764659364116,2.16585408,87041.0,87040.0,0.01258424]
[1764659364319,2.48885408,87041.0,87040.0,0.01258424]
[1764659367271,2.48885408,87041.0,87040.0,0.00110016]
[1764659369779,2.55137707,87041.0,87040.0,0.00110016]
[1764659370036,2.58502828,87041.0,87040.0,0.00110016]
[1764659371951,2.58302828,87041.0,87040.0,0.00110016]
[1764659372544,2.58602828,87041.0,87040.0,0.00110016]
[1764659375508,2.55237707,87041.0,87040.0,0.01258424]
[1764659376715,2.53421707,87041.0,87040.0,0.00110016]
[1764659377038,2.55237707,87041.0,87040.0,0.00110016]
[1764659377381,2.55237707,87041.0,87040.0,0.01258424]
[1764659378858,2.48985408,87041.0,87040.0,0.01258424]
[1764659382347,2.47169408,87041.0,87040.0,0.01258424]
[1764659382500,2.48985408,87041.0,87040.0,0.00110016]
[1764659382841,2.48985408,87041.0,87040.0,0.01258424]
[1764659384426,2.48985408,87041.0,87040.0,0.00110016]
[1764659387086,2.55237707,87041.0,87040.0,0.00110016]
[1764659388923,2.58602828,87041.0,87040.0,0.00110016]
[1764659393290,2.55237707,87041.0,87040.0,0.00110016]
[1764659397274,2.58602828,87041.0,87040.0,0.00110016]
[1764659405804,2.46020707,87041.0,87040.0,0.00110016]
[1764659406003,2.55237707,87041.0,87040.0,0.00110016]
[1764659407522,2.33748408,87041.0,87040.0,0.00110016]
[1764659407748,2.03264408,87041.0,87040.0,0.01258424]
[1764659408342,2.35564408,87041.0,87040.0,0.01258424]
[1764659408543,2.33748408,87041.0,87040.0,0.01258424]
[1764659408760,2.01448408,87041.0,87040.0,0.17323424]
[1764659408894,0.003,87041.0,87040.0,0.17323424]
[1764659409298,0.22977413,87042.0,87041.0,0.01148408]
[1764659409522,0.22977413,87042.0,87041.0,0.21894753]
[1764659410658,0.22977413,87042.0,87041.0,0.21994753]
[1764659411873,0.23077413,87042.0,87041.0,0.22094753]
[1764659414042,0.001,87042.0,87041.0,0.22094753]
[1764659422156,0.01148804,87047.0,87041.0,0.20746345]
[1764659422361,0.24124897,87047.0,87046.0,0.01148408]
[1764659422798,0.24124897,87047.0,87046.0,0.12299408]
[1764659423015,0.24124897,87047.0,87046.0,0.18643408]
[1764659423974,0.24224897,87047.0,87046.0,0.18643408]
[1764659425350,0.24224897,87047.0,87046.0,0.18743408]
[1764659429524,0.08062445,87047.0,87046.0,0.18743408]
[1764659430057,0.09211249,87047.0,87046.0,0.18743408]
[1764659430657,0.09211249,87047.0,87046.0,0.09022408]
[1764659431282,0.09211249,87047.0,87046.0,0.02678408]
[1764659433422,0.09211249,87047.0,87046.0,0.12131408]
[1764659433595,0.09211249,87047.0,87046.0,0.18563408]
[1764659433800,0.001,87047.0,87046.0,0.18563408]
[1764659440634,0.001,87047.0,87046.0,0.41539765]
[1764659440834,0.001,87047.0,87046.0,0.18563408]
[1764659452702,0.001,87047.0,87046.0,0.02678408]
[1764659453053,0.001,87047.0,87046.0,0.18537408]
[1764659455988,0.001,87047.0,87046.0,0.41513765]
[1764659456148,0.001,87047.0,87046.0,0.18537408]
[1764659461983,0.19769813,87050.0,87049.0,0.01148408]
[1764659462193,0.19769813,87050.0,87049.0,0.30206973]
[1764659462687,0.19769813,87050.0,87049.0,0.39982973]
[1764659464334,0.19769813,87050.0,87049.0,0.40082973]
[1764659464515,0.19869813,87050.0,87049.0,0.40182973]
[1764659465584,0.19869813,87050.0,87049.0,0.17207408]
[1764659465869,0.19869813,87050.0,87049.0,0.16561761]
[1764659473134,0.53539257,87070.0,87069.0,0.01148408]
[1764659473442,2.33448408,87077.0,87076.0,0.01148408]
[1764659473714,0.0114825,87089.0,87085.0,0.01148408]
[1764659473834,2.0114825,87089.0,87088.0,0.01148408]
[1764659474028,2.0,87091.0,87090.0,0.01148408]
[1764659474235,0.24112155,87093.0,87092.0,0.01148408]
[1764659474438,2.24112155,87093.0,87092.0,0.01148408]
[1764659474684,2.24112789,87091.0,87090.0,0.01148408]
[1764659475086,2.24312789,87091.0,87090.0,0.07860408]
[1764659475290,2.24312789,87091.0,87090.0,0.16991408]
[1764659475448,0.22965012,87089.0,87088.0,0.04626]
[1764659475649,0.22965012,87089.0,87088.0,0.01148408]
[1764659476036,0.24114246,87086.0,87085.0,0.10279408]
[1764659476490,0.24114246,87086.0,87085.0,0.07760408]
[1764659476691,0.24114246,87086.0,87085.0,0.16891408]
[1764659478103,0.0124829,87086.0,87085.0,0.16891408]
[1764659478261,0.001,87086.0,87085.0,0.16891408]
[1764659478952,0.001,87086.0,87085.0,0.16991408]
[1764659479148,0.24113539,87088.0,87087.0,0.01148408]
[1764659479403,0.24113539,87088.0,87087.0,0.07760408]
[1764659479716,0.24113539,87088.0,87087.0,0.16891408]
[1764659480611,0.24113539,87088.0,87087.0,0.16991408]
[1764659480812,0.0114825,87089.0,87088.0,0.01148408]
[1764659480985,0.0114825,87089.0,87088.0,0.20808408]
[1764659482209,0.0134825,87089.0,87088.0,0.11677408]
[1764659482387,0.0134825,87089.0,87088.0,0.11777408]
[1764659482746,0.0134825,87089.0,87088.0,0.20908408]
[1764659483926,0.002,87089.0,87088.0,0.20908408]
[1764659486988,0.002,87089.0,87088.0,0.43873684]
[1764659487998,0.002,87089.0,87088.0,0.20908408]
[1764659494104,0.002,87089.0,87088.0,0.43873684]
[1764659498425,0.002,87089.0,87088.0,0.83873684]
[1764659498975,0.01148,87108.0,87103.0,0.22961263]
[1764659499106,0.24107631,87110.0,87109.0,0.11983408]
[1764659499509,0.24107631,87110.0,87109.0,0.21788408]
[1764659500429,0.24307631,87110.0,87109.0,0.21788408]
[1764659500814,0.24307631,87110.0,87109.0,0.11983408]
[1764659501044,0.22961848,87101.0,87100.0,0.05990408]
[1764659502228,0.22961848,87101.0,87100.0,0.15795408]
[1764659502470,0.22961848,87101.0,87100.0,0.22004408]
[1764659502849,0.22961848,87101.0,87100.0,0.22104408]
[1764659504071,0.323,87103.0,87102.0,0.01148408]
[1764659504275,0.01148026,87106.0,87105.0,0.01148408]
[1764659504423,0.24108768,87106.0,87105.0,0.07357408]
[1764659504620,0.24108768,87106.0,87105.0,0.17162408]
[1764659505524,0.24108768,87106.0,87105.0,0.07357408]
[1764659506030,0.24308768,87106.0,87105.0,0.07457408]
[1764659506993,0.24308768,87106.0,87105.0,0.07557408]
[1764659507611,0.24308768,87106.0,87105.0,0.01348408]
[1764659507974,0.24308768,87106.0,87105.0,0.17362408]
[1764659508615,0.24308768,87106.0,87105.0,0.07557408]
[1764659510276,0.24308768,87106.0,87105.0,0.01348408]
[1764659510753,0.56608768,87106.0,87105.0,0.01348408]
[1764659515216,0.56608768,87106.0,87105.0,0.17362408]
[1764659517704,0.33648026,87106.0,87105.0,0.17362408]
[1764659518109,0.325,87106.0,87105.0,0.17362408]
[1764659519601,0.002,87106.0,87105.0,0.16214]
[1764659519817,0.002,87106.0,87105.0,0.40323202]
[1764659520028,0.0004,87140.0,87129.0,0.01147723]
[1764659520029,0.54189052,87140.0,87129.0,0.01147723]
[1764659520210,0.54189052,87140.0,87127.0,0.01147749]
[1764659520211,0.77140716,87140.0,87139.0,0.05936408]
[1764659520401,0.59888784,87140.0,87139.0,0.05936408]
[1764659520757,0.56439242,87140.0,87139.0,0.05936408]
[1764659520894,0.24139242,87140.0,87139.0,0.05936408]